Cogmind - Beta 11.1 @@@ ROGUE MODE // 2022.05.26 @ 02:29:53 Player: kway_side Result: Destroyed by G-67 Veteran with Plasma Rifle Performance ------------- Evolutions (7) 3500 Regions Visited (14) 2800 Robots Destroyed (199) 995 Value Destroyed (5643) 5643 Prototype IDs (49) 980 Alien Tech Used (0) 0 Bonus (962) 962 TOTAL SCORE: 14880 Bonus ------- High Alert Combat Kills 572 Follower Combat Kills 90 Aligned with FarCom 300 Cogmind --------- Core Integrity 0/1300 Matter 24/300 Energy 200/200 System Corruption 0% Temperature Cool (0) Movement Rolling (90) Location -3/Research Parts ------- > --- POWER (2) -------- Micro Fission Core Micro Fission Core > --- PROPULSION (5) --- Centrium Wheel > --- UTILITY (12) ----- Improved Terrain Scan Processor > --- WEAPON (2) ------- (None) > --- INVENTORY (5) ---- Improved Fusion Compressor Heavy Shock Bomb Launcher Peak State ------------ > --- POWER ------------ Backup Power I Micro Fission Core > --- PROPULSION ------- Improved VTOL Module Improved VTOL Module Cooled VTOL Module Cooled VTOL Module Cooled VTOL Module > --- UTILITY ---------- Medium Storage Unit Machine Analyzer Experimental Optical Array Experimental Signal Interpreter Hacking Suite Advanced Hacking Suite Advanced Hacking Suite System Shield System Shield Improved System Guard > --- WEAPON ----------- Greatsword > --- INVENTORY -------- Improved Ion Engine Nuclear Pulse Thruster Field Propulsion Drive Advanced Power Amplifier Cloak of Protection Authchip [Propulsion] Authchip [Armor] Proton Missile Launcher Micro-nuke Launcher Improved Remote Datajack [Rating: 91] Favorites ----------- Power Improved Ion Engine Engine Improved Ion Engine Power Core Light Nuclear Core Reactor Micro Antimatter Reactor Propulsion Light Treads Treads Light Treads Leg Aluminum Leg Wheel Compact Wheel Flight Unit Improved VTOL Module Utility Hacking Suite Device Recoil Stabilizer Storage Large Storage Unit Processor Machine Analyzer Hackware Hacking Suite Protection Light Armor Plating Weapon Improved Assault Rifle Energy Gun Beam Rifle Energy Cannon EM Pulse Cannon Ballistic Gun Improved Assault Rifle Ballistic Cannon Assault Cannon Launcher Micro-nuke Launcher Special Weapon Mining Laser Impact Weapon Great Maul Slashing Weapon Scythe Special Melee Weapon Improved Datajack Build | -11 -10 -10 -9 -9 -9 -8 -8 -7 -7 -7 -6 -5 -4 -3 ------- Run | Scr Mat Min Mat Min Exi Min Mat Fac Was Fac Fac Fac Fac Res Slots Evolved 14 | . . . 2 . . . 2 2 . . 2 2 2 2 Power 1 | . . . . . . . . . . . . 1 . . Propulsion 3 | . . . 1 . . . 1 1 . . . . . . Utility 10 | . . . 1 . . . 1 1 . . 2 1 2 2 Weapon . | . . . . . . . . . . . . . . . Parts Attached 383 | . 11 8 64 7 1 . 98 61 5 27 37 32 20 12 Power 47 | . 1 2 10 . . . 12 6 1 3 5 3 1 3 Engine 31 | . 1 2 9 . . . 9 2 . 1 5 1 1 . Core 15 | . . . 1 . . . 3 4 1 2 . 2 . 2 Reactor 1 | . . . . . . . . . . . . . . 1 Propulsion 92 | . 4 3 19 . . . 28 14 1 6 5 6 4 2 Treads 54 | . 4 1 15 . . . 27 7 . . . . . . Leg 5 | . . 2 3 . . . . . . . . . . . Wheel 2 | . . . . . . . . . . . . . . 2 Hover . | . . . . . . . . . . . . . . . Flight 31 | . . . 1 . . . 1 7 1 6 5 6 4 . Utility 121 | . 6 1 10 . 1 . 18 26 . 9 17 17 10 6 Device 44 | . . . . . . . 9 10 . 1 7 9 5 3 Storage 16 | . 2 . 1 . 1 . 3 1 . 4 3 . 1 . Processor 14 | . . . 2 . . . . 4 . . 1 2 4 1 Hackware 21 | . . . . . . . . 5 . 4 6 4 . 2 Protection 26 | . 4 1 7 . . . 6 6 . . . 2 . . Artifact . | . . . . . . . . . . . . . . . Weapon 123 | . . 2 25 7 . . 40 15 3 9 10 6 5 1 Energy Gun 11 | . . 2 1 . . . 2 6 . . . . . . Energy Cannon 1 | . . . . . . . 1 . . . . . . . Ballistic Gun 45 | . . . 16 4 . . 21 1 2 1 . . . . Ballistic Cannon 4 | . . . . . . . 1 2 . . . 1 . . Launcher 19 | . . . 6 3 . . 4 1 . 1 1 . 2 1 Special Weapon 15 | . . . 2 . . . 6 . 1 1 2 2 1 . Impact Weapon 9 | . . . . . . . 5 4 . . . . . . Slashing Weapon 18 | . . . . . . . . 1 . 6 7 2 2 . Piercing Weapon . | . . . . . . . . . . . . . . . Special Melee Weapon 1 | . . . . . . . . . . . . 1 . . Unidentified Prototypes 19 | . . . 3 . . . 5 3 1 2 1 1 3 . Parts Lost 47 | . 2 2 4 1 . . 5 3 1 3 8 3 7 8 Power 8 | . 1 . 2 . . . . 1 . . 1 . 3 . Propulsion 9 | . 1 . . . . . . 1 . . 2 . 2 3 Utility 22 | . . 1 1 1 . . 3 . . 2 5 3 2 4 Weapon 8 | . . 1 1 . . . 2 1 1 1 . . . 1 Highest Loss Streak 5 | . 1 1 2 1 . . 1 2 1 1 4 1 5 4 To Critical Strikes 1 | . . . . . . . 1 . . . . . . . Average Slot Usage (%) 94 | . 99 98 99 93 89 100 98 99 94 89 85 89 73 34 Engine 7 | . 13 14 10 11 11 11 7 5 . 1 5 5 2 . Core 1 | . . . . . . . . 1 7 5 . 4 4 . Treads 23 | . 24 10 29 33 33 33 35 28 . . . . . . Leg 1 | . 3 16 3 . . . . . . . . . . . Flight 8 | . . . . . . . . 9 37 38 33 28 22 4 Device 3 | . . . . . . . 6 11 . . 3 2 . 2 Storage 10 | . 14 14 12 11 12 22 15 7 7 7 6 5 4 . Processor 4 | . . . 5 11 11 11 5 7 . . . . 10 7 Hackware 6 | . . . . . . . . 4 30 28 29 32 25 13 Protection 7 | . 13 13 14 5 . . 8 5 . . . . . . Energy Gun 1 | . . 22 . . . . . 4 . . . . . . Ballistic Gun 11 | . 28 5 20 21 22 22 13 1 1 . . . . . Ballistic Cannon 1 | . . . . . . . . 5 . . . . . . Slashing Weapon 1 | . . . . . . . . . 7 6 3 4 2 . Naked Turns 119 | . . . . . . . . . . . . . . 119 Heaviest Build 121 | 12 34 36 54 37 36 36 121 111 23 29 35 31 25 29 Greatest Support 112 | 20 40 40 63 60 60 60 112 104 26 27 41 30 31 17 Greatest Overweight (x) 11 | . . 11 1 . . . 1 4 . 1 1 1 1 2 Average Overweight (x) . | . . . . . . . . . . . . . . . Largest Inventory Capacity 25 | . 15 15 15 15 15 15 25 25 10 15 15 10 10 5 Average Capacity 15 | . 10 15 15 15 15 15 18 21 10 14 14 10 9 5 Most Carried 25 | . 15 15 15 15 15 15 25 25 10 15 15 10 10 5 Average Carried 15 | . 9 14 14 14 14 15 17 20 9 14 13 9 9 4 Final Capacity 25 | 8 15 15 15 15 15 15 25 10 10 15 10 10 5 5 Final Carried 25 | 6 15 15 15 15 15 15 25 10 10 15 9 10 4 2 Class Distribution -------------------- 41% | Scavenger-Mutant 27% | Mutant 17% | Hacker-Sprinter 3% | Skirmisher Dominant Class ---------------- Mutant | -10/Materials Scavenger-Mutant | -10/Mines Scavenger-Mutant | -9/Materials Scavenger-Mutant | -9/Mines Scavenger-Mutant | -9/Exiles Scavenger-Mutant | -8/Mines Mutant | -8/Materials Skirmisher | -7/Factory Hacker-Sprinter | -7/Waste Hacker-Sprinter | -7/Factory Hacker-Sprinter | -6/Factory Wizard-Sprinter | -5/Factory Hacker-Sprinter | -4/Factory Mutant | -3/Research Resources | -11 -10 -10 -9 -9 -9 -8 -8 -7 -7 -7 -6 -5 -4 -3 ----------- Run | Scr Mat Min Mat Min Exi Min Mat Fac Was Fac Fac Fac Fac Res Matter Collected 6487 | 200 226 95 1558 228 74 13 1558 1197 225 203 429 336 145 . Remotely . | . . . . . . . . . . . . . . . Salvage Created 7373 | . 477 254 2314 362 . . 1469 1238 . 239 456 304 260 . Parts 432 | . 30 25 148 18 . . 96 53 . 20 18 8 16 . Haulers Intercepted 24 | . 2 . 5 . . . 6 4 . 2 3 1 1 . Recyclers Shooed 21 | . 6 . 10 . . . 2 1 . . . . 1 1 Parts Field Recycled . | . . . . . . . . . . . . . . . Retrieved Matter . | . . . . . . . . . . . . . . . Parts Self-Destructed . | . . . . . . . . . . . . . . . Prevented . | . . . . . . . . . . . . . . . Kills | -11 -10 -10 -9 -9 -9 -8 -8 -7 -7 -7 -6 -5 -4 -3 ------- Run | Scr Mat Min Mat Min Exi Min Mat Fac Was Fac Fac Fac Fac Res Combat Hostiles Destroyed 141 | . 11 10 50 8 . . 30 18 . 2 1 2 9 . Melee 6 | . . . . . . . 1 1 . 2 1 1 . . Guns 81 | . 11 9 34 4 . . 18 5 . . . . . . Cannons 13 | . . . . . . . . 12 . . . 1 . . AOE 41 | . . 1 16 4 . . 11 . . . . . 9 . Classes Destroyed 15 | . 5 . 5 1 . . 3 1 . . . . . . Worker 11 | . . . 1 . . . 5 1 . . 2 . 2 . Builder 3 | . . . 1 . . . . 1 . 1 . . . . Tunneler 4 | . . . . 1 . . 3 . . . . . . . Hauler 24 | . 2 . 5 . . . 6 4 . 2 3 1 1 . Recycler 13 | . 1 . 4 1 . . 2 4 . . . 1 . . Operator 6 | . 1 . 2 . . . 1 1 . 1 . . . . Watcher 2 | . . . . . . . 1 1 . . . . . . Swarmer 36 | . 5 6 7 . . . 11 . . . . . 7 . Grunt 62 | . 6 4 28 8 . . 9 7 . . . . . . Brawler 4 | . . . 4 . . . . . . . . . . . Duelist 1 | . . . . . . . 1 . . . . . . . Protector 1 | . . . 1 . . . . . . . . . . . Sentry 21 | . . . 10 . . . 8 3 . . . . . . Hunter 5 | . . . . . . . 1 2 . . . . 2 . Programmer 11 | . . . . . . . . 6 . 2 1 2 . . Best Kill Streak 6 | . 3 3 6 4 . . 6 3 . 1 1 1 6 . Combat Bots Only 5 | . 3 3 5 3 . . 5 3 . 1 1 1 5 . Max Kills in Single Turn 3 | . 1 1 3 2 . . 3 2 . 1 1 1 3 . Gunslinging 1 | . . . 1 . . . 1 . . . . . . . Exploded 3 | . . 1 3 1 . . 3 . . . . . 3 . Melee 1 | . . . . . . . 1 1 . 1 1 1 . . Uniques/NPCs Destroyed . | . . . . . . . . . . . . . . . Combat | -11 -10 -10 -9 -9 -9 -8 -8 -7 -7 -7 -6 -5 -4 -3 -------- Run | Scr Mat Min Mat Min Exi Min Mat Fac Was Fac Fac Fac Fac Res Damage Taken 12829 | . 778 337 2237 356 . . 3098 1388 64 371 630 443 1078 2049 Core 3314 | . 188 7 311 70 . . 349 164 7 144 235 58 468 1313 Absorbed by Shields . | . . . . . . . . . . . . . . . Redirected to Shielding 68 | . 7 . 61 . . . . . . . . . . . Regen/Repaired (Parts) 677 | . . . 168 . . . 94 . . 42 . 171 202 . Core Remaining (%) 55 | 100 . 22 . . . 4 36 . . 55 72 94 59 . Volleys Fired 513 | . 63 18 166 22 . . 137 80 3 3 6 10 5 . Largest 2 | . 2 2 2 2 . . 2 2 1 1 1 1 1 . Hottest 123 | . 40 110 76 46 . . 123 121 33 35 20 57 49 . Shots Fired 912 | . 126 35 297 32 . . 239 156 3 3 6 10 5 . Gun 761 | . 126 35 275 24 . . 217 78 3 3 . . . . Cannon 85 | . . . . . . . 1 78 . . . 6 . . Launcher 41 | . . . 19 8 . . 9 . . . . . 5 . Special 25 | . . . 3 . . . 12 . . . 6 4 . . Kinetic 720 | . 126 17 250 24 . . 191 100 3 3 . 6 . . Thermal 135 | . . 2 28 . . . 39 56 . . 6 4 . . Explosive 39 | . . . 19 6 . . 9 . . . . . 5 . Electromagnetic 18 | . . 16 . 2 . . . . . . . . . . Robot Hit Streak 24 | . 8 6 19 7 . . 24 14 . . 2 5 . . Robot Miss Streak 5 | . 5 2 4 2 . . 5 3 3 . 1 1 . . Penetration Max . | . . . . . . . . . . . . . . . Secondary Targets 6 | . 2 1 2 . . . 1 . . . . . . . Max Gunslinging Chain 1 | . 1 1 1 . . . 1 . . . . . . . Shots Hit Robots 661 | . 80 20 207 21 . . 163 118 . 18 13 21 . . Core Hits 322 | . 33 14 101 16 . . 64 54 1 6 7 6 19 1 Critical Kills . | . . . . . . . . . . . . . . . Critical Parts Destroyed 6 | . 1 . 2 1 . . 2 . . . . . . . Critical Strikes 29 | . 1 . 4 1 . . 5 11 . 2 1 4 . . Burn 11 | . . . 2 . . . 2 7 . . . . . . Destroy 6 | . 1 . 2 1 . . 2 . . . . . . . Blast 4 | . . . . . . . . 4 . . . . . . Smash 1 | . . . . . . . 1 . . . . . . . Sever 7 | . . . . . . . . . . 2 1 4 . . Melee Attacks 148 | . . . . . . . 14 22 . 50 24 26 12 . Impact 27 | . . . . . . . 14 13 . . . . . . Slashing 121 | . . . . . . . . 9 . 50 24 26 12 . Piercing . | . . . . . . . . . . . . . . . Sneak Attacks 10 | . . . . . . . 1 1 . 3 4 1 . . Combat Hostiles . | . . . . . . . . . . . . . . . Follow-up Attacks . | . . . . . . . . . . . . . . . Damage Inflicted 16127 | . 730 292 4643 710 . 12 3672 2661 17 724 481 759 1412 14 Guns 7606 | . 730 244 3003 258 . . 2382 972 17 . . . . . Cannons 1683 | . . . . . . . . 1480 . . . 203 . . Explosions 4532 | . . 48 1631 436 . . 1005 . . . . . 1412 . Melee 2069 | . . . . . . . 207 178 . 724 438 522 . . Ramming 136 | . . . 9 16 . 12 54 31 . . . . . 14 Kinetic 7823 | . 730 73 2757 258 . . 2097 1688 17 . . 203 . . Thermal 1649 | . . 48 246 . . . 309 764 . . 43 34 205 . Explosive 4184 | . . . 1631 341 . . 1005 . . . . . 1207 . Electromagnetic 266 | . . 171 . 95 . . . . . . . . . . Impact 247 | . . . . . . . 207 40 . . . . . . Slashing 1822 | . . . . . . . . 138 . 724 438 522 . . Piercing . | . . . . . . . . . . . . . . . Highest Corruption 9 | . . . 9 9 9 9 7 2 2 4 1 5 . . Average Corruption 4 | . . . 4 9 9 9 5 1 2 2 1 4 . . Corruption Purged . | . . . . . . . . . . . . . . . Corruption Blocked . | . . . . . . . . . . . . . . . Effects 257 | . . . 51 16 15 10 93 26 4 24 5 13 . . Message Errors 53 | . . . 10 4 3 2 21 5 . 3 1 4 . . Matter Fused 71 | . . . 15 3 2 6 26 4 3 6 3 3 . . Heat Flow Errors 26 | . . . 7 2 3 . 7 3 . 3 1 . . . Energy Discharges 32 | . . . 5 4 2 1 12 3 . 4 . 1 . . Parts Rejected 5 | . . . . 1 . . 3 . . 1 . . . . Data Loss (minor) 39 | . . . 5 1 4 1 11 10 1 2 . 4 . . Data Loss (major) 17 | . . . 4 . 1 . 6 1 . 4 . 1 . . Misfires 6 | . . . 3 . . . 3 . . . . . . . Alerts 4 | . . . 1 1 . . 1 . . 1 . . . . Weapon Failures 4 | . . . 1 . . . 3 . . . . . . . Overload Shots . | . . . . . . . . . . . . . . . Overflow Damage 637 | . . . 26 . . . 319 24 . 36 24 99 109 . Projectiles 24 | . . . . . . . . 24 . . . . . . Explosions 307 | . . . 26 . . . 172 . . . . . 109 . Melee 306 | . . . . . . . 147 . . 36 24 99 . . Knockbacks 16 | . . . . . . . 2 11 . . . 2 . 1 Impact 3 | . . . . . . . 2 . . . . . . 1 Kinetic 13 | . . . . . . . . 11 . . . 2 . . Secondary . | . . . . . . . . . . . . . . . Self-Inflicted Damage 660 | . . 49 177 22 . . 297 . . . . . 109 6 Shots 17 | . . 1 6 2 . . 6 . . . . . 2 . Rammed 28 | . . . 4 3 . 1 13 4 . . . . . 3 Targets Rammed 36 | . . . 4 3 . 1 19 6 . . . . . 3 Kicked . | . . . . . . . . . . . . . . . Crushed 8 | . . . . . . . 6 2 . . . . . . Highest Temperature 426 | . 43 157 267 235 195 . 271 426 5 315 161 92 114 2 Average Temperature 45 | . 18 54 68 53 101 . 56 67 2 29 45 15 37 1 Received Heat Transfer 2592 | . 186 126 726 192 . . 576 429 . 72 30 18 39 198 Effects 1 | . . . . . . . . 1 . . . . . . Energy Bleed 1 | . . . . . . . . 1 . . . . . . Siege Activations . | . . . . . . . . . . . . . . . Robots Corrupted . | . . . . . . . . . . . . . . . Combat Hostiles . | . . . . . . . . . . . . . . . Parts Fried 3 | . . . . . . . 3 . . . . . . . Impact Corruptions 6 | . . . . . . . 6 . . . . . . . Robots Melted . | . . . . . . . . . . . . . . . Combat Hostiles . | . . . . . . . . . . . . . . . Parts Melted 5 | . . . 3 . . . . 2 . . . . . . Heat Transferred 4431 | . . 50 740 . . . 901 2331 . . 148 111 150 . Parts Sabotaged . | . . . . . . . . . . . . . . . Parts Stolen . | . . . . . . . . . . . . . . . Parts Stripped . | . . . . . . . . . . . . . . . Power Chain Reactions . | . . . . . . . . . . . . . . . Missiles Intercepted . | . . . . . . . . . . . . . . . Alert | -11 -10 -10 -9 -9 -9 -8 -8 -7 -7 -7 -6 -5 -4 -3 ------- Run | Scr Mat Min Mat Min Exi Min Mat Fac Was Fac Fac Fac Fac Res Peak Influence 1289 | . 181 340 1289 830 . . 439 354 138 180 247 237 393 368 Initial 502 | . . . 54 502 . . . 189 106 . 58 28 72 203 Average 244 | . 45 234 549 738 . . 223 151 48 67 142 71 170 264 Maximum Alert Level 4 | . . 1 4 3 . . 2 1 . . 1 1 1 1 Low Security (%) 58 | . 100 36 29 . . 100 42 66 100 100 81 98 73 11 Level 1 26 | . . 63 12 . . . 50 33 . . 18 1 26 88 Level 2 5 | . . . 13 35 . . 7 . . . . . . . Level 3 8 | . . . 37 64 . . . . . . . . . . Level 4 1 | . . . 6 . . . . . . . . . . . Level 5 . | . . . . . . . . . . . . . . . High Security . | . . . . . . . . . . . . . . . Max Security . | . . . . . . . . . . . . . . . Sterilizations 1 | . . . 1 . . . . . . . . . . . Squads Dispatched 47 | . 2 . 7 . . . 3 16 . 8 4 4 1 2 Investigation 18 | . 1 . 2 . . . . 5 . 5 2 1 1 1 Extermination 11 | . . . . . . . . 5 . 3 1 2 . . Reinforcement 12 | . 1 . 2 . . . 3 3 . . 1 1 . 1 Assault 3 | . . . 3 . . . . . . . . . . . Garrison 3 | . . . . . . . . 3 . . . . . . Intercept . | . . . . . . . . . . . . . . . Searches Triggered . | . . . . . . . . . . . . . . . Construction Impeded 1 | . . . . . . . 1 . . . . . . . Haulers Reinforced 3 | . . . . . . . . 2 . . . 1 . . Active Scanning Responses . | . . . . . . . . . . . . . . . Cargo Convoy Interrupts . | . . . . . . . . . . . . . . . Stealth | -11 -10 -10 -9 -9 -9 -8 -8 -7 -7 -7 -6 -5 -4 -3 --------- Run | Scr Mat Min Mat Min Exi Min Mat Fac Was Fac Fac Fac Fac Res Distress Signals 17 | . 1 . 3 . . . 5 1 . 1 1 . 5 . Communications Jammed . | . . . . . . . . . . . . . . . Distress Signals . | . . . . . . . . . . . . . . . Times Spotted 332 | . 22 11 77 9 . . 68 31 6 25 18 23 27 15 Peak Tracking Total 10 | . 5 3 6 3 . . 8 4 5 6 7 10 9 7 Tactical Retreats 42 | . 2 3 3 1 . . 4 3 . 5 6 5 5 5 Traps | -11 -10 -10 -9 -9 -9 -8 -8 -7 -7 -7 -6 -5 -4 -3 ------- Run | Scr Mat Min Mat Min Exi Min Mat Fac Was Fac Fac Fac Fac Res Traps Triggered 14 | . 1 . 3 . . . . 4 . 1 2 1 1 1 Indirectly . | . . . . . . . . . . . . . . . Trap Hack Attempts . | . . . . . . . . . . . . . . . Triggered . | . . . . . . . . . . . . . . . Disarmed . | . . . . . . . . . . . . . . . Reprogrammed . | . . . . . . . . . . . . . . . Reused . | . . . . . . . . . . . . . . . Traps Extracted . | . . . . . . . . . . . . . . . Installed . | . . . . . . . . . . . . . . . Triggered . | . . . . . . . . . . . . . . . Machines | -11 -10 -10 -9 -9 -9 -8 -8 -7 -7 -7 -6 -5 -4 -3 ---------- Run | Scr Mat Min Mat Min Exi Min Mat Fac Was Fac Fac Fac Fac Res Machines Disabled 30 | . . 1 14 1 . . 6 1 . . . 1 6 . Max in Single Turn 4 | . . 1 2 1 . . 2 1 . . . 1 4 . Garrison Access 5 | . . . . . . . 1 2 . 1 . 1 . . Machines Sabotaged . | . . . . . . . . . . . . . . . Garrisons Compromised . | . . . . . . . . . . . . . . . Overloaded Fab Kills . | . . . . . . . . . . . . . . . Hacking | -11 -10 -10 -9 -9 -9 -8 -8 -7 -7 -7 -6 -5 -4 -3 --------- Run | Scr Mat Min Mat Min Exi Min Mat Fac Was Fac Fac Fac Fac Res Machines Accessed 103 | . 9 . 12 . 1 . 13 14 . 25 8 11 9 1 Terminals 59 | . 7 . 9 . . . 7 6 . 12 6 6 5 1 Fabricators 12 | . . . . . . . . 3 . 5 2 1 1 . Repair Stations 11 | . 1 . 1 . . . 2 1 . 2 . 2 2 . Recycling Units 9 | . 1 . 1 . . . 1 1 . 3 . 1 1 . Scanalyzers 6 | . . . 1 . . . 2 1 . 2 . . . . Garrison Access 5 | . . . . . . . 1 2 . 1 . 1 . . Total Hacks 307 | . 25 . 34 . 1 . 40 37 . 72 26 36 32 4 Successful 217 | . 14 . 18 . 1 . 27 26 . 63 20 25 22 1 Failed 90 | . 11 . 16 . . . 13 11 . 9 6 11 10 3 Catastrophic 9 | . . . 4 . . . . 1 . 2 1 . . 1 Database Lockouts . | . . . . . . . . . . . . . . . Manual 149 | . 16 . 18 . 1 . 15 12 . 32 18 19 14 4 Terminals 197 | . 21 . 26 . . . 27 14 . 40 22 21 22 4 Fabricators 33 | . . . . . . . . 8 . 15 4 4 2 . Repair Stations 33 | . 2 . 4 . . . 4 2 . 5 . 9 7 . Recycling Units 16 | . 2 . 1 . . . 3 3 . 5 . 1 1 . Scanalyzers 21 | . . . 3 . . . 5 7 . 6 . . . . Garrison Access 6 | . . . . . . . 1 3 . 1 . 1 . . Terminal Hacks 87 | . 8 . 8 . 1 . 13 5 . 24 11 8 9 . Record 2 | . . . . . . . . . . 1 1 . . . Part Schematic 7 | . . . . . . . . . . 3 2 2 . . Robot Analysis 4 | . 2 . . . . . 1 . . 1 . . . . Prototype ID Bank 3 | . . . . . . . . . . 2 1 . . . Open Door 1 | . . . . . . . . . . . . 1 . . Level Access Points 4 | . . . . . . . . . . 1 1 1 1 . Machine Index 1 | . . . . . . . . . . . . . 1 . Terminal Index 6 | . . . . . . . 1 1 . 1 1 1 1 . Fabricator Index 2 | . . . . . . . . . . 1 1 . . . Alert Level 20 | . 1 . 4 . . . 6 1 . 5 1 1 1 . Unreport Threat 11 | . 2 . 2 . . . 3 1 . 1 . . 2 . Security Status 1 | . . . . . . . . . . 1 . . . . Investigation Status 1 | . 1 . . . . . . . . . . . . . Recall Investigation 4 | . . . . . . . . . . 2 2 . . . Recall Extermination 2 | . . . . . . . . 1 . . . . 1 . Hauler Manifests 4 | . 1 . 1 . . . . 1 . 1 . . . . Registered Components 2 | . . . . . . . . . . 1 . 1 . . Zone Layout 11 | . 1 . 1 . . . 2 . . 3 1 1 2 . EX-Prototype ID Bank 1 | . . . . . 1 . . . . . . . . . Fabricator Hacks 24 | . . . . . . . . 6 . 11 3 3 1 . Network Status 3 | . . . . . . . . 2 . 1 . . . . Load Schematic 15 | . . . . . . . . 3 . 7 2 2 1 . Build 6 | . . . . . . . . 1 . 3 1 1 . . Repair Station Hacks 31 | . 1 . 4 . . . 4 1 . 5 . 9 7 . Scan Component 16 | . 1 . 2 . . . 2 1 . 2 . 5 3 . Repair 13 | . . . 2 . . . 2 . . 2 . 4 3 . Refit 2 | . . . . . . . . . . 1 . . 1 . Recycling Unit Hacks 13 | . 2 . 1 . . . 2 2 . 4 . 1 1 . Report Inventory 9 | . 1 . 1 . . . 1 1 . 3 . 1 1 . Retrieve Components 4 | . 1 . . . . . 1 1 . 1 . . . . Scanalyzer 20 | . . . 3 . . . 5 6 . 6 . . . . Insert Component 11 | . . . 1 . . . 3 3 . 4 . . . . Analyze 9 | . . . 2 . . . 2 3 . 2 . . . . Garrison Access Hacks 5 | . . . . . . . 1 2 . 1 . 1 . . Seal Access 5 | . . . . . . . 1 2 . 1 . 1 . . Unauthorized Hacks 37 | . 3 . 2 . . . 2 4 . 12 6 3 4 1 Terminals 27 | . 3 . 2 . . . 2 2 . 7 5 2 3 1 Assimilate 6 | . . . . . . . . 1 . 2 2 . 1 . Botnet 15 | . 2 . 1 . . . 1 1 . 4 2 2 1 1 Detonate 1 | . . . . . . . . . . . . . 1 . Operators 5 | . 1 . 1 . . . 1 . . 1 1 . . . Fabricators 9 | . . . . . . . . 2 . 4 1 1 1 . Recompile 9 | . . . . . . . . 2 . 4 1 1 1 . Repair Stations . | . . . . . . . . . . . . . . . Recycling Units 1 | . . . . . . . . . . 1 . . . . Monitor 1 | . . . . . . . . . . 1 . . . . Scanalyzers . | . . . . . . . . . . . . . . . Garrison Access . | . . . . . . . . . . . . . . . Data Cores Recovered 1 | . . . . . . . . . . 1 . . . . Used . | . . . . . . . . . . . . . . . Hacking Detections 80 | . 8 . 10 . . . 12 10 . 18 6 9 6 1 Full Trace Events 6 | . . . 3 . . . 1 1 . 1 . . . . Feedback Events 2 | . . . 1 . . . . . . 1 . . . . Corruption 1 | . . . 1 . . . . . . . . . . . Hackware Fried 1 | . . . . . . . . . . 1 . . . . Feedback Blocked . | . . . . . . . . . . . . . . . Robot Schematics Acquired . | . . . . . . . . . . . . . . . Robots Built . | . . . . . . . . . . . . . . . Authchips . | . . . . . . . . . . . . . . . Time . | . . . . . . . . . . . . . . . Total Robot Build Rating . | . . . . . . . . . . . . . . . Part Schematics Acquired 15 | . . . 1 . . . 2 3 . 5 2 2 . . Parts Built 6 | . . . . . . . . 1 . 3 1 1 . . Authchips 6 | . . . . . . . . 1 . 3 1 1 . . Time 396 | . . . . . . . . 36 . 201 106 53 . . Total Part Build Rating 27 | . . . . . . . . 3 . 12 6 6 . . Parts Repaired 13 | . . . 2 . . . 2 . . 2 . 4 3 . Time 522 | . . . 52 . . . 77 . . 49 . 218 126 . Parts Recycled . | . . . . . . . . . . . . . . . Recycled Matter . | . . . . . . . . . . . . . . . Retrieved Matter . | . . . . . . . . . . . . . . . Retrieved Components 18 | . 3 . . . . . 10 3 . 2 . . . . Parts Scanalyzed 8 | . . . 1 . . . 2 3 . 2 . . . . Part Schematics Acquired 8 | . . . 1 . . . 2 3 . 2 . . . . Parts Damaged . | . . . . . . . . . . . . . . . Bothacking | -11 -10 -10 -9 -9 -9 -8 -8 -7 -7 -7 -6 -5 -4 -3 ------------ Run | Scr Mat Min Mat Min Exi Min Mat Fac Was Fac Fac Fac Fac Res Used RIF Installer . | . . . . . . . . . . . . . . . Robots Hacked . | . . . . . . . . . . . . . . . Non-combat . | . . . . . . . . . . . . . . . Combat . | . . . . . . . . . . . . . . . Robot Hacks Applied . | . . . . . . . . . . . . . . . Relay Couplers Released . | . . . . . . . . . . . . . . . Fabnet Peak Effective % . | . . . . . . . . . . . . . . . Robots Rewired . | . . . . . . . . . . . . . . . Allies Hacked 1 | . . . . . . . . . . 1 . . . . Hacks Repelled . | . . . . . . . . . . . . . . . Allies | -11 -10 -10 -9 -9 -9 -8 -8 -7 -7 -7 -6 -5 -4 -3 -------- Run | Scr Mat Min Mat Min Exi Min Mat Fac Was Fac Fac Fac Fac Res Total Allies 24 | . . . . . . . . . 19 2 2 . 1 . Largest Group 19 | . . . . . . . . . 19 1 1 . 1 . Highest-Rated Group 465 | . . . . . . . . . 465 26 26 . 26 . Highest-Rated Ally 35 | . . . . . . . . . 35 26 26 . 26 . Total Orders 3 | . . . . . . . . . . . . . 3 . ROAM 1 | . . . . . . . . . . . . . 1 . RETURN 2 | . . . . . . . . . . . . . 2 . Ally Attacks 148 | . . . . . . . . . 148 . . . . . Total Damage 3017 | . . . . . . . . . 3017 . . . . . Kills 9 | . . . . . . . . . 9 . . . . . Allies Corrupted 1 | . . . . . . . . . . 1 . . . . Allies Melted . | . . . . . . . . . . . . . . . Intel | -11 -10 -10 -9 -9 -9 -8 -8 -7 -7 -7 -6 -5 -4 -3 ------- Run | Scr Mat Min Mat Min Exi Min Mat Fac Was Fac Fac Fac Fac Res Robot Analysis Total 4 | . 2 . . . . . 1 . . 1 . . . . Derelict Logs Recovered 1 | . . . . 1 . . . . . . . . . . Drone Launches 2 | . . . . . . . . . . . . . 2 . Drone Recoveries 2 | . . . . . . . . . . . . . 2 . Exploration | -11 -10 -10 -9 -9 -9 -8 -8 -7 -7 -7 -6 -5 -4 -3 ------------- Run | Scr Mat Min Mat Min Exi Min Mat Fac Was Fac Fac Fac Fac Res Turns Passed 18976 | . 1552 539 3786 388 429 405 4570 3064 204 1405 808 825 584 417 Spaces Moved 18630 | 1 865 253 1888 183 267 250 2027 2620 546 4065 1899 1906 1256 604 Core 243 | . . 2 . . . . . . . . . . . 241 Treads 6019 | . 725 89 1709 183 267 250 2027 769 . . . . . . Legs 482 | 1 140 162 179 . . . . . . . . . . . Wheels 145 | . . . . . . . . . . . . . . 145 Hover . | . . . . . . . . . . . . . . . Flight 11741 | . . . . . . . . 1851 546 4065 1899 1906 1256 218 Fastest Speed 11 | 120 120 160 120 160 160 160 151 24 24 23 11 17 14 31 Average Speed 78 | 120 153 183 161 160 160 160 180 84 24 23 25 23 26 57 Slowest Speed 600 | 120 160 600 240 160 160 160 238 304 27 93 91 90 97 150 Overloaded Moves 298 | . . . . . . . . . . . 53 35 165 45 Propulsion Burnouts . | . . . . . . . . . . . . . . . Robots Hopped 93 | . . . . . . . . 13 8 23 15 8 25 1 Cave-ins Triggered 1 | . . . . . . . 1 . . . . . . . Exploration Rate (%) 53 | 2 96 31 97 42 61 44 93 46 97 59 39 41 34 21 Regions Visited 14 Branch Regions 4 Pre-discovered Areas 1 | . . . . 1 . . . . . . . . . . Known Exits Taken 4 | . . . . . . . . . . 1 1 1 1 . Unknown Exits Taken 8 | 1 1 1 1 1 1 1 1 . . . . . . . Scrap Searched 1 | . . . . . . 1 . . . . . . . . Spaces Dug 126 | . . . 9 . . . 35 17 . 29 12 12 12 . Terrain Destroyed 537 | . . 15 114 47 . . 145 24 . 29 12 13 138 . Melee 88 | . . . . . . . 8 17 . 27 12 12 12 . Projectile 22 | . . . . . . . 12 7 . 2 . 1 . . AOE 427 | . . 15 114 47 . . 125 . . . . . 126 . Terrain Rammed . | . . . . . . . . . . . . . . . Walls Destroyed . | . . . . . . . . . . . . . . . Machines Disabled . | . . . . . . . . . . . . . . . Actions | -11 -10 -10 -9 -9 -9 -8 -8 -7 -7 -7 -6 -5 -4 -3 --------- Run | Scr Mat Min Mat Min Exi Min Mat Fac Was Fac Fac Fac Fac Res Total 21829 | . 990 301 2339 242 269 255 2642 3284 605 4414 2152 2211 1457 668 Wait 1761 | . 29 9 125 28 . 5 250 439 56 211 175 219 171 44 Move 18444 | . 864 252 1887 182 266 249 2026 2597 533 4019 1869 1889 1209 602 Hop 80 | . . . . . . . . 10 4 22 14 8 21 1 Pick Up 165 | . 12 5 34 . 1 . 31 20 2 43 5 6 3 3 Fast Attach 156 | . 5 4 17 . 1 . 36 32 3 11 9 19 12 7 Attach 81 | . 2 3 8 1 . . 8 10 1 10 20 6 7 5 Detach 42 | . 3 1 3 . . . . 6 . 10 11 3 4 1 Swap 147 | . 4 1 39 6 . . 54 19 1 7 8 7 1 . Drop 256 | . 8 8 56 . 1 . 67 43 2 28 11 18 12 2 Fire 513 | . 63 18 166 22 . . 137 80 3 3 6 10 5 . Melee 148 | . . . . . . . 14 22 . 50 24 26 12 . Ram 3 | . . . . . . . . . . . . . . 3 Kick . | . . . . . . . . . . . . . . . Crush 33 | . . . 4 3 . 1 19 6 . . . . . . Escape Stasis . | . . . . . . . . . . . . . . . Rewire . | . . . . . . . . . . . . . . . Trap . | . . . . . . . . . . . . . . . Miscellaneous . | . . . . . . . . . . . . . . . Route ------- -11/Scrapyard -10/Materials (discovered 4 exits: *Mat x3 / [*Min]) -10/Mines -9/Materials (discovered 7 exits: *Mat x3 / [*Min x2] / [*Sto x2]) -9/Mines (discovered 3 exits: *Mat x2 / *Exi) -9/Exiles -8/Mines -8/Materials (discovered 2 exits: *Fac x2) -7/Factory (discovered 2 exits: *Fac / [*Low]) -7/Waste -7/Factory (discovered 5 exits: *Fac x4 / [*Low]) -6/Factory (discovered 4 exits: *Fac x4) -5/Factory (discovered 7 exits: *Fac x4 / [*Upp x2] / [*Ext]) -4/Factory (discovered 5 exits: *Res x4 / [*Upp]) -3/Research History --------- Turn | Location | Event 1 | -11/Scrapyard | Discovered new exit (range 0) 1 | -11/Scrapyard | Entered Materials 301 | -10/Materials | Build established: Mutant 307 | -10/Materials | Discovered new exit (range 15) 717 | -10/Materials | Discovered new exit (range 13) 757 | -10/Materials | Discovered new exit (range 13) 906 | -10/Materials | Core integrity fell below 50% 1001 | -10/Materials | Discovered new exit (range 13) 1553 | -10/Materials | Entered Mines 2016 | -10/Mines | Discovered new exit (range 8) 2050 | -10/Mines | Build established: Scavenger-Mutant 2092 | -10/Mines | Entered Materials 2092 | -9/Materials | Evolved 2 slots: Propulsion x1, Utility x1 2329 | -9/Materials | Discovered new exit (range 5) 3264 | -9/Materials | Discovered new exit (range 13) 3380 | -9/Materials | Discovered new exit (range 16) 3551 | -9/Materials | Discovered new exit (range 3) 3793 | -9/Materials | Discovered new exit (range 13) 4176 | -9/Materials | Discovered new exit (range 16) 4204 | -9/Materials | Discovered new exit (range 6) 4492 | -9/Materials | First assault squad dispatched 4555 | -9/Materials | Core integrity fell below 50% 5165 | -9/Materials | Repaired Lgt. Treads? 5210 | -9/Materials | Repaired Lgt. Treads 5835 | -9/Materials | Sterilization system engaged 5835 | -9/Materials | Non-combat units ordered to evacuate 5878 | -9/Materials | Entered Mines 5878 | -9/Mines | Discovered new exit (range 9) 5885 | -9/Mines | Core integrity fell below 20% 6182 | -9/Mines | Learned location of Zion (-7) 6226 | -9/Mines | Discovered new exit (range 4) 6257 | -9/Mines | Deemed a non-threat by the Exiles lab entrance 6258 | -9/Mines | Discovered new exit (range 5) 6266 | -9/Mines | Entered Exiles 6308 | -9/Exiles | Met 8R-AWN 6335 | -9/Exiles | Met EX-HEX 6388 | -9/Exiles | Met EX-BIN 6409 | -9/Exiles | Aligned with FarCom system 6410 | -9/Exiles | Given EX-Vault access code 6455 | -9/Exiles | Opened EX-Vault 6480 | -9/Exiles | Found Cloak of Protection 6518 | -9/Exiles | Warned to stay clear of 0b10 Research branches 6567 | -9/Exiles | Met EX-DEC 6674 | -9/Exiles | Discovered new exit (range 14) 6695 | -9/Exiles | Left Exiles lab with Cloak of Protection 6695 | -9/Exiles | Entered Mines 7033 | -8/Mines | Discovered new exit (range 4) 7100 | -8/Mines | Entered Materials 7100 | -8/Materials | Evolved 2 slots: Propulsion x1, Utility x1 8195 | -8/Materials | Repaired Lgt. Treads? 8677 | -8/Materials | Discovered new exit (range 15) 8796 | -8/Materials | Build established: Mutant 9084 | -8/Materials | Repaired Imp. Assault Rifle? 9821 | -8/Materials | Crushed by falling debris 9874 | -8/Materials | Core integrity fell below 50% 10357 | -8/Materials | Build established: Scavenger-Mutant 10385 | -8/Materials | Discovered new exit (range 15) 10907 | -8/Materials | Build established: Mutant 11670 | -8/Materials | Entered Factory 11670 | -7/Factory | Evolved 2 slots: Propulsion x1, Utility x1 12187 | -7/Factory | Build established: Skirmisher 13090 | -7/Factory | Build established: Mutant 13256 | -7/Factory | Discovered new exit (range 15) 13380 | -7/Factory | Garrison activated, responded to threat 13733 | -7/Factory | Build established: Scavenger-Mutant 14530 | -7/Factory | Discovered new exit (range 12) 14545 | -7/Factory | Build established: Hacker-Scout 14635 | -7/Factory | Fabricated Hacking Suite (x1) 14734 | -7/Factory | Sucked down chute 14734 | -7/Factory | Entered Waste 14735 | -7/Waste | Met a frightened Derelict 14747 | -7/Waste | Warlord forces began an assault 14769 | -7/Waste | Spotted C-40 Crusher 14769 | -7/Waste | Spotted C-40 Crusher 14787 | -7/Waste | Spotted C-40 Crusher 14792 | -7/Waste | Spotted C-40 Crusher 14793 | -7/Waste | Discovered new exit (range 16) 14794 | -7/Waste | Spotted C-40 Crusher 14798 | -7/Waste | Spotted C-40 Crusher 14799 | -7/Waste | Crushed by Compactor (1 part destroyed, 1 dropped) 14831 | -7/Waste | Allies destroyed C-40 Crusher 14857 | -7/Waste | Allies destroyed C-40 Crusher 14899 | -7/Waste | Build established: Hacker-Sprinter 14938 | -7/Waste | Entered Factory 15361 | -7/Factory | Discovered new exit (range 14) 15424 | -7/Factory | Repaired Lgt. Nuclear Core 15445 | -7/Factory | Identified exit to Factory 15483 | -7/Factory | Repaired Imp. VTOL Module 15580 | -7/Factory | Fabricated Cld. VTOL Module? 15600 | -7/Factory | Hacking Suite fried by hacking feedback 15701 | -7/Factory | Discovered new exit (range 7) 15875 | -7/Factory | Fabricated Cld. VTOL Module? 16305 | -7/Factory | Fabricated Cld. VTOL Module? 16343 | -7/Factory | Entered another Factory area 16343 | -6/Factory | Evolved 2 slots: Utility x2 16524 | -6/Factory | Identified exit to Factory 17065 | -6/Factory | Fabricated Adv. Hacking Suite (x1) 17097 | -6/Factory | Lost 4 parts (1n3u) 17151 | -6/Factory | Entered another Factory area 17151 | -5/Factory | Evolved 2 slots: Power x1, Utility x1 17179 | -5/Factory | Identified exit to Factory 17264 | -5/Factory | Discovered new exit (range 15) 17291 | -5/Factory | Discovered new exit (range 5) 17326 | -5/Factory | Discovered new exit (range 4) 17360 | -5/Factory | Fabricated Adv. Hacking Suite (x1) 17609 | -5/Factory | Repaired Cld. VTOL Module? 17685 | -5/Factory | Repaired Cld. VTOL Module 17746 | -5/Factory | Repaired Imp. VTOL Module 17775 | -5/Factory | Repaired Mic. Fission Core 17976 | -5/Factory | Entered another Factory area 17976 | -4/Factory | Evolved 2 slots: Utility x2 18024 | -4/Factory | Discovered new exit (range 4) 18055 | -4/Factory | Repaired Lgt. Deuterium Engine? 18103 | -4/Factory | Found Prototype Processor 18103 | -4/Factory | Identified Exp. Signal Interpreter 18187 | -4/Factory | Repaired Greatsword 18259 | -4/Factory | Repaired Cld. VTOL Module 18371 | -4/Factory | Identified exit to Research 18494 | -4/Factory | Lost 5 parts (2p2n1u) 18495 | -4/Factory | Spotted B-86 Titan 18560 | -4/Factory | Entered Research 18560 | -3/Research | Evolved 2 slots: Utility x2 18777 | -3/Research | Released all parts (9) 18801 | -3/Research | Lost 4 parts (1n3u) 18811 | -3/Research | Core integrity fell below 50% 18877 | -3/Research | Core integrity fell below 20% 18977 | -3/Research | Destroyed by G-67 Veteran with Plasma Rifle Last Messages --------------- 18873_ Slug penetrates Wall. 18876_ Penetrated by Slug. 18876_ Slug penetrates Wall. 18878_ Penetrated by Slug. 18896_ Acquired Centrium Wheel. 18905_ Slug penetrates Wall. 18906_ Penetrated by Slug. 18933_ Acquired Mic. Fission Core. 18938_ Acquired Imp. Terrain Scan Processor. 18949_ Slug penetrates Wall. 18952_ Penetrated by Slug. 18952_ Slug penetrates Wall. 18958_ Penetrated by Slug. 18971_ Micro-nuke Launcher destroyed. 18971_ Penetrated by Slug. 18971_ Slug penetrates Wall. 18975_ Penetrated by Slug. 18975_ Cloak of Protection destroyed. 18975_ H-77 Assassin suffers critical hit (Destroy). 18976_ O-32 Director: "IFF HANDSHAKE FAILED. SECURING TERMINAL." Map ----- +----------------------------------------------------+ | ??????????????????# ????# # # #???? | | ??????????????????# ??????# ########### #???? | | ??????????????????#????????# #?????????# #???? | | ???????????????????????????# #?????????# #???? | | ???????????????????????????# #?????????# #???? | | ???????????????????????????# #?????????# #???? | | ???????????????????????????# #????????## #???? | | ???????????????????????????# #?????? !## #???? | | ???????????????????????????# #???? ## #???? | | ???????????????????????????# #?? ## #???? | | ???????????????????????????# # ## #???? | | ???????????????????????????# + !! ## #???? | | ???????????????????????????# # !! ## #???? | | ????????????????o??????????# #?? !! ## #???? | | ??????????????##+########### #???? ## #???? | | ?????????????? #?????? ## #???? | | ????????????? #????????## #???? | | ????????????? #?????????# #???? | | ????????????? [[[ #?????????# #???? | | ???????????????##+### [[ #?????????# #???? | | ????????????????????# [h #?????????# #???? | | ????????????????????# ########### ##??? | | ????????????????????# ##+# | | ????????????????????# h | | ????????????????????# g k | | ????????????????????# @ A #### | | ????????????????????# ###+###### #??? | | ???????????########## #????????# #??? | | ???????????# # * #????????# #??? | | ???????????# # #????????# #??? | | ???????????# "" ! # #????????# #### | | ???????????#""" # #????????# | | ???????????#"T ; #????????# #### | | ???????????#""" # ###+#######?????######??? | | ???????????# "" # # #?????????????? | | ???????????# # # #?????????????? | | ???????????# [ ###### =#?????????????? | | ???????????##########????# """ #?????????????? | | ?????????????????????????# """ #?????????????? | | ?????????????????????????# """ #?????????????? | | ?????????????????????????# #?????????????? | | ?????????????????????????# #?????????????? | | ?????????????????????????###########?############# | | ?????????????????????????????????????# # | | ?????????????????????????????????????# # | | ?????????????????????????????????????# [# | | ?????????????????????????????????????# # | | ??????????????????????????????????????? # | | ????????????????????????????????????????? # | | ??????????????????????????????????????????#+###### | +----------------------------------------------------+ Best States ------------- Heat Dissipation 46 Energy Generation 25 Energy Capacity 615 Matter Stores 366 Matter Capacity 600 Sight Range 22 Terrain Scan Range 20 Terrain Scan Density 110 Jamming Range 12 Cloak Strength 5 Power Amplification 30 Additional Mass Support 12 Corruption Containment 12 Armor Coverage 375 Core Shielding 20 Propulsion Shielding 33 Utility Shielding 33 Weapon Shielding 66 Weapon Cycling 15 Evasion (%) 67 Targeting Accuracy 5 Target Analysis 5 Recoil Reduction 9 Matter Filtering 50 Particle Charging 15 Offensive Hacking 58 Defensive Hacking 20 Authchip Count 3 Item Schematics ----------------- Hacking Suite | -9/Materials | Scanalyzed Imp. Flight Unit | -8/Materials | Scanalyzed Lgt. Nuclear Core | -8/Materials | Scanalyzed Rocket Launcher | -7/Factory | Scanalyzed Imp. Grenade Launcher | -7/Factory | Scanalyzed VTOL Module | -7/Factory | Scanalyzed System Shield | -7/Factory | Hacked Cld. VTOL Module | -7/Factory | Hacked Plasma Cutter | -7/Factory | Scanalyzed Cld. Ion Engine | -7/Factory | Hacked Energy Well | -7/Factory | Scanalyzed Adv. Hacking Suite | -6/Factory | Hacked Adv. Reaction Control System | -6/Factory | Hacked Exp. Propulsion Shielding | -5/Factory | Hacked Exp. Utility Shielding | -5/Factory | Hacked Robot Schematics ------------------ None Fabricated ------------ Hacking Suite | x1 | -7/Factory | Authchip Cld. VTOL Module | x1 | -7/Factory | Authchip Cld. VTOL Module | x1 | -7/Factory | Authchip Cld. VTOL Module | x1 | -7/Factory | Authchip Adv. Hacking Suite | x1 | -6/Factory | Authchip Adv. Hacking Suite | x1 | -5/Factory | Authchip Alien Tech Used ----------------- None Achievements -------------- Treasure Hunter Challenges ------------ None Game ------ Seed AntigravElectronFalx Manual? 0 Play Time 06:59:43 Cumulative 128.2 hours Start 2022.05.24 @ 04:29:33 End 2022.05.26 @ 02:29:53 Sessions 4 Manual Loads 0 Difficulty Rogue Special Mode None Game No. 109 Rogue 109 Adventurer 0 Explorer 0 Win Type - Total 0 Types 0/0/0/0/0/0/0/0/0 Lore% 28 Gallery% 42 Achievement% 33 Wizard Run 0 Options --------- ASCII 0 Keyboard 0 Movement Numpad Keybinds 0 Fullscreen 2 Font 18/Smallcaps Map View 76x50 Tactical HUD 1 Map Filters NONE Filters NONE Steam 1 RUN: c7bbeda3-1caa-44d9-8d0b-dcc1f101a98e